Workbook

Sheet Sines
B1: Exploring Limacons
B3: This graphing utility produces the graph
B4: of the limacon in polar form
C5: r = a*sin(Q) + b
B6: on the interval from Q = 0 to Q = 2p.
A9: What is the value of a (from 1 to 8)?
C10: 4 | F10: =C10/10+1 -> 1.4
A13: What is the value of b (from 1 to 5)?
C14: 21 | F14: =C14/10+1 -> 3.1
I18: The graph of the limacon r = | M18: =TEXT(a,"0.00") & " sin(Q) + " &TEXT(ABS(b),"0.00") -> 1.40 sin(Q) + 3.10
A19: Click each item below for suggestions and investigations
B20: Item 1
B21: Item 2 | I21: Now trace along the limacon:
B22: Item 3 | I22: Q = | J22: =K22*Calcs!B12 -> 2.31 | K22: 74
B23: Item 4 | I23: r = | J23: =LOOKUP(J22,Calcs!C3:C204,Calcs!D3:D204) -> 4.16
A27: To access/download all the DIGMath Apps for Calculus
A28: Click this link: | C28: DIGMath for Calculus
A30: Created by: Sheldon P. Gordon
A31: Farmingdale State College
A32: Development of this module was supported by the
A33: NSF's Division of Undergraduate Education
A34: under grants DUE-0310123 and DUE-0442160.

Sheet Cosines
B1: Exploring Cardioids
B3: This graphing utility produces the graph
B4: of the cardioid in polar form
C5: r = a*cos(Q) + b
B6: on the interval from Q = 0 to Q = 2p.
A9: What is the value of a (from 1 to 8)?
C10: 25 | F10: =C10/10+1 -> 3.5
A13: What is the value of b (from 1 to 5)?
C14: 25 | F14: =C14/10+1 -> 3.5
I18: The graph of the cardioid r = | M18: =TEXT(aa,"0.00") & " cos(Q) + " & TEXT(ABS(bb),"0.00") -> 3.50 cos(Q) + 3.50
A19: Click each item below for suggestions and investigations
B20: Item 1
B21: Item 2 | I21: Now trace along the cardioid:
B22: Item 3 | I22: Q = | J22: =K22*Calcs!B12 -> 0.94 | K22: 30
B23: Item 4 | I23: r = | J23: =LOOKUP(J22,Calcs!K3:K204,Calcs!L3:L204) -> 5.57
A27: To access/download all the DIGMath Apps for Calculus
A28: Click this link: | C28: DIGMath for Calculus
A30: Created by: Sheldon P. Gordon & Florence S. Gordon
A31: Farmingdale State College NYIT
A32: Development of this module was supported by the
A33: NSF's Division of Undergraduate Education
A34: under grants DUE-0310123 and DUE-0442160.

Sheet Calcs
C1: Q | D1: r = f(Q) | E1: x | F1: y | H1: Tracing point -- sine | K1: Q | L1: r = f(Q) | M1: x | N1: y
C3: 0 | D3: =a*SIN(Q) + b -> 3.1 | E3: =D3*COS(C3) -> 3.1 | F3: =D3*SIN(C3) -> 0 | H3: 0 | I3: 0 | K3: 0 | L3: =aa*COS(QQ) + bb -> 7 | M3: =L3*COS(K3) -> 7 | N3: =L3*SIN(K3) -> 0
C4: =C3+Calcs!B$12 -> 0.03125962839 | D4: 3.143756353 | E4: =D4*COS(C4) -> 3.142220494 | F4: =D4*SIN(C4) -> 0.09825665137 | H4: =LOOKUP(Sines!$J$22,Calcs!C3:C204,E3:E204) -> -2.715699909 | I4: =LOOKUP(Sines!J22,Calcs!C3:C204,F3:F204) -> 3.152139988 | K4: =K3+Calcs!B$12 -> 0.03125962839 | L4: 6.998290102 | M4: =L4*COS(K4) -> 6.99487114 | N4: =L4*SIN(K4) -> 0.2187283217
C5: =C4+Calcs!B$12 -> 0.06251925679 | D5: 3.187469952 | E5: 3.181242616 | F5: 0.1991484594 | K5: =K4+Calcs!B$12 -> 0.06251925679 | L5: 6.993162077 | M5: 6.979499591 | N5: 0.4369225357
C6: =C5+Calcs!B$12 -> 0.09377888518 | D6: 3.231098085 | E6: 3.216900582 | F6: 0.3025648375 | K6: =K5+Calcs!B$12 -> 0.09377888518 | L6: 6.984620937 | M6: 6.953930387 | N6: 0.6540503084
C7: =C6+Calcs!B$12 -> 0.1250385136 | D7: 3.274598125 | E7: 3.249032895 | F7: 0.4083847803 | H7: Start line: | K7: =K6+Calcs!B$12 -> 0.1250385136 | L7: 6.972675027 | M7: 6.91823841 | N7: 0.8695828467
C8: =C7+Calcs!B$12 -> 0.156298142 | D8: 3.317927567 | E8: 3.277482996 | F8: 0.5164770595 | H8: 0 | I8: 0 | K8: =K7+Calcs!B$12 -> 0.156298142 | L8: 6.957336019 | M8: 6.872528118 | N8: 1.082996653
C9: =C8+Calcs!B$12 -> 0.1875577704 | D9: 3.361044076 | E9: 3.30209991 | F9: 0.6267004609 | H9: =1.2*D3*COS(C3) -> 3.72 | I9: =1.2*D3*SIN(C3) -> 0 | K9: =K8+Calcs!B$12 -> 0.1875577704 | L9: 6.9386189 | M9: 6.816933169 | N9: 1.293775257
C10: =C9+Calcs!B$12 -> 0.2188173988 | D10: 3.403905522 | E10: 3.322738869 | F10: 0.7389040617 | K10: =K9+Calcs!B$12 -> 0.2188173988 | L10: 6.916541959 | M10: 6.751615947 | N10: 1.501410927
C11: =C10+Calcs!B$12 -> 0.2500770272 | D11: 3.446470028 | E11: 3.339261932 | F11: 0.8529275466 | K11: =K10+Calcs!B$12 -> 0.2500770272 | L11: 6.891126767 | M11: 6.676766981 | N11: 1.705406343
A12: delta Q = | B12: =2*PI()/201 -> 0.03125962839 | C12: =C11+Calcs!B$12 -> 0.2813366555 | D12: 3.488696002 | E12: 3.351538573 | F12: 0.9686015628 | K12: =K11+Calcs!B$12 -> 0.2813366555 | L12: 6.862398157 | M12: 6.59260426 | N12: 1.905276234
C13: =C12+Calcs!B$12 -> 0.3125962839 | D13: 3.530542187 | E13: 3.35944626 | F13: 1.085748112 | K13: =K12+Calcs!B$12 -> 0.3125962839 | L13: 6.830384198 | M13: 6.499372457 | N13: 2.100548967
C14: =C13+Calcs!B$12 -> 0.3438559123 | D14: 3.571967697 | E14: 3.362871006 | F14: 1.204180976 | K14: =K13+Calcs!B$12 -> 0.3438559123 | L14: 6.795116171 | M14: 6.397342052 | N14: 2.290768091
C15: =C14+Calcs!B$12 -> 0.3751155407 | D15: 3.612932053 | E15: 3.361707894 | F15: 1.323706184 | K15: =K14+Calcs!B$12 -> 0.3751155407 | L15: 6.756628537 | M15: 6.286808374 | N15: 2.475493821
C16: =C15+Calcs!B$12 -> 0.4063751691 | D16: 3.653395232 | E16: 3.355861577 | F16: 1.444122502 | K16: =K15+Calcs!B$12 -> 0.4063751691 | L16: 6.7149589 | M16: 6.168090538 | N16: 2.654304457
C17: =C16+Calcs!B$12 -> 0.4376347975 | D17: 3.693317697 | E17: 3.345246749 | F17: 1.565221964 | K17: =K16+Calcs!B$12 -> 0.4376347975 | L17: 6.670147976 | M17: 6.041530317 | N17: 2.826797739
C18: =C17+Calcs!B$12 -> 0.4688944259 | D18: 3.73266044 | E18: 3.329788585 | F18: 1.686790425 | H18: Tracing point -- cosine | K18: =K17+Calcs!B$12 -> 0.4688944259 | L18: 6.622239549 | M18: 5.907490921 | N18: 2.992592132
C19: =C18+Calcs!B$12 -> 0.5001540543 | D19: 3.77138502 | E19: 3.309423143 | F19: 1.808608147 | K19: =K18+Calcs!B$12 -> 0.5001540543 | L19: 6.571280429 | M19: 5.766355706 | N19: 3.151328028
C20: =C19+Calcs!B$12 -> 0.5314136827 | D20: 3.809453599 | E20: 3.284097739 | F20: 1.930450406 | H20: 0 | I20: 0 | K20: =K19+Calcs!B$12 -> 0.5314136827 | L20: 6.517320407 | M20: 5.618526818 | N20: 3.302668873
C21: =C20+Calcs!B$12 -> 0.5626733111 | D21: 3.846828983 | E21: 3.25377128 | F21: 2.052088127 | H21: =LOOKUP(Cosines!$J$22,Calcs!K3:K204,M3:M204) -> 3.295354632 | I21: =LOOKUP(Cosines!J22,Calcs!K3:K204,N3:N204) -> 4.491229082 | K21: =K20+Calcs!B$12 -> 0.5626733111 | L21: 6.460412207 | M21: 5.464423761 | N21: 3.446302199
C22: =C21+Calcs!B$12 -> 0.5939329395 | D22: 3.883474651 | E22: 3.218414565 | F22: 2.173288535 | K22: =K21+Calcs!B$12 -> 0.5939329395 | L22: 6.400611434 | M22: 5.304481917 | N22: 3.58194058
C23: =C22+Calcs!B$12 -> 0.6251925679 | D23: 3.919354799 | E23: 3.178010538 | F23: 2.29381583 | K23: =K22+Calcs!B$12 -> 0.6251925679 | L23: 6.337976517 | M23: 5.139151007 | N23: 3.70932248
C24: =C23+Calcs!B$12 -> 0.6564521963 | D24: 3.954434367 | E24: 3.132554509 | F24: 2.413431874 | H24: Start line: | K24: =K23+Calcs!B$12 -> 0.6564521963 | L24: 6.272568657 | M24: 4.968893502 | N24: 3.828213019
C25: =C24+Calcs!B$12 -> 0.6877118247 | D25: 3.98867908 | E25: 3.082054333 | F25: 2.531896896 | H25: 0 | I25: 0 | K25: =K24+Calcs!B$12 -> 0.6877118247 | L25: 6.204451762 | M25: 4.794183 | N25: 3.93840463
C26: =C25+Calcs!B$12 -> 0.7189714531 | D26: 4.022055478 | E26: 3.026530542 | F26: 2.648970205 | H26: =1.2*L3*COS(K3) -> 8.4 | I26: =1.2*D3*SIN(K3) -> 0 | K26: =K25+Calcs!B$12 -> 0.7189714531 | L26: 6.133692388 | M26: 4.615502558 | N26: 4.03971762
C27: =C26+Calcs!B$12 -> 0.7502310815 | D27: 4.05453095 | E27: 2.96601644 | F27: 2.764410915 | K27: =K26+Calcs!B$12 -> 0.7502310815 | L27: 6.060359673 | M27: 4.433343004 | N27: 4.132000627
C28: =C27+Calcs!B$12 -> 0.7814907098 | D28: 4.086073764 | E28: 2.90055815 | F28: 2.877978671 | K28: =K27+Calcs!B$12 -> 0.7814907098 | L28: 5.98452527 | M28: 4.248201219 | N28: 4.215130973
C29: =C28+Calcs!B$12 -> 0.8127503382 | D29: 4.116653101 | E29: 2.830214621 | F29: 2.989434387 | K29: =K28+Calcs!B$12 -> 0.8127503382 | L29: 5.906263275 | M29: 4.060578404 | N29: 4.289014911
C30: =C29+Calcs!B$12 -> 0.8440099666 | D30: 4.146239081 | E30: 2.755057592 | F30: 3.098540977 | K30: =K29+Calcs!B$12 -> 0.8440099666 | L30: 5.825650157 | M30: 3.870978344 | N30: 4.353587764
C31: =C30+Calcs!B$12 -> 0.875269595 | D31: 4.174802797 | E31: 2.675171505 | F31: 3.20506409 | K31: =K30+Calcs!B$12 -> 0.875269595 | L31: 5.742764681 | M31: 3.679905657 | N31: 4.408813961
C32: =C31+Calcs!B$12 -> 0.9065292234 | D32: 4.20231634 | E32: 2.590653384 | F32: 3.308772834 | K32: =K31+Calcs!B$12 -> 0.9065292234 | L32: 5.657687834 | M32: 3.48786406 | N32: 4.454686962
C33: =C32+Calcs!B$12 -> 0.9377888518 | D33: 4.228752826 | E33: 2.501612665 | F33: 3.409440502 | K33: =K32+Calcs!B$12 -> 0.9377888518 | L33: 5.570502743 | M33: 3.295354632 | N33: 4.491229082
C34: =C33+Calcs!B$12 -> 0.9690484802 | D34: 4.254086425 | E34: 2.408170984 | F34: 3.506845281 | K34: =K33+Calcs!B$12 -> 0.9690484802 | L34: 5.481294596 | M34: 3.102874103 | N34: 4.518491202
C35: =C34+Calcs!B$12 -> 1.000308109 | D35: 4.278292383 | E35: 2.310461921 | F35: 3.600770949 | K35: =K34+Calcs!B$12 -> 1.000308109 | L35: 5.390150555 | M35: 2.910913161 | N35: 4.536552389
C36: =C35+Calcs!B$12 -> 1.031567737 | D36: 4.30134705 | E36: 2.208630708 | F36: 3.691007565 | K36: =K35+Calcs!B$12 -> 1.031567737 | L36: 5.297159677 | M36: 2.719954793 | N36: 4.545519395
C37: =C36+Calcs!B$12 -> 1.062827365 | D37: 4.323227899 | E37: 2.102833888 | F37: 3.777352129 | K37: =K36+Calcs!B$12 -> 1.062827365 | L37: 5.202412822 | M37: 2.530472655 | N37: 4.545526076
C38: =C37+Calcs!B$12 -> 1.094086994 | D38: 4.343913551 | E38: 1.993238944 | F38: 3.859609235 | K38: =K37+Calcs!B$12 -> 1.094086994 | L38: 5.106002565 | M38: 2.34292949 | N38: 4.536732701
C39: =C38+Calcs!B$12 -> 1.125346622 | D39: 4.363383793 | E39: 1.880023882 | F39: 3.937591692 | K39: =K38+Calcs!B$12 -> 1.125346622 | L39: 5.008023107 | M39: 2.157775591 | N39: 4.519325165
C40: =C39+Calcs!B$12 -> 1.156606251 | D40: 4.381619603 | E40: 1.763376779 | F40: 4.011121125 | K40: =K39+Calcs!B$12 -> 1.156606251 | L40: 4.908570183 | M40: 1.975447315 | N40: 4.49351412
C41: =C40+Calcs!B$12 -> 1.187865879 | D41: 4.398603161 | E41: 1.6434953 | F41: 4.08002855 | K41: =K40+Calcs!B$12 -> 1.187865879 | L41: 4.807740966 | M41: 1.796365662 | N41: 4.459534012
C42: =C41+Calcs!B$12 -> 1.219125507 | D42: 4.414317874 | E42: 1.520586174 | F42: 4.144154918 | K42: =K41+Calcs!B$12 -> 1.219125507 | L42: 4.705633976 | M42: 1.620934914 | N42: 4.417642032
C43: =C42+Calcs!B$12 -> 1.250385136 | D43: 4.428748387 | E43: 1.394864646 | F43: 4.203351626 | K43: =K42+Calcs!B$12 -> 1.250385136 | L43: 4.602348979 | M43: 1.449541342 | N43: 4.368116988
C44: =C43+Calcs!B$12 -> 1.281644764 | D44: 4.4418806 | E44: 1.266553892 | F44: 4.257481005 | K44: =K43+Calcs!B$12 -> 1.281644764 | L44: 4.497986893 | M44: 1.28255199 | N44: 4.311258109
C45: =C44+Calcs!B$12 -> 1.312904393 | D45: 4.453701682 | E45: 1.135884407 | F45: 4.306416757 | K45: =K44+Calcs!B$12 -> 1.312904393 | L45: 4.39264969 | M45: 1.120313538 | N45: 4.247383768
C46: =C45+Calcs!B$12 -> 1.344164021 | D46: 4.464200083 | E46: 1.003093376 | F46: 4.350044374 | K46: =K45+Calcs!B$12 -> 1.344164021 | L46: 4.286440292 | M46: 0.9631512445 | N46: 4.176830145
C47: =C46+Calcs!B$12 -> 1.375423649 | D47: 4.473365545 | E47: 0.8684240076 | F47: 4.388261505 | K47: =K46+Calcs!B$12 -> 1.375423649 | L47: 4.179462475 | M47: 0.8113679771 | N47: 4.099949828
C48: =C47+Calcs!B$12 -> 1.406683278 | D48: 4.481189112 | E48: 0.7321248549 | F48: 4.420978291 | K48: =K47+Calcs!B$12 -> 1.406683278 | L48: 4.071820766 | M48: 0.6652433346 | N48: 4.017110362
C49: =C48+Calcs!B$12 -> 1.437942906 | D49: 4.48766314 | E49: 0.5944491171 | F49: 4.448117658 | K49: =K48+Calcs!B$12 -> 1.437942906 | L49: 3.96362034 | M49: 0.5250328597 | N49: 3.928692746
C50: =C49+Calcs!B$12 -> 1.469202535 | D50: 4.492781303 | E50: 0.4556539222 | F50: 4.46961557 | K50: =K49+Calcs!B$12 -> 1.469202535 | L50: 3.854966917 | M50: 0.390967349 | N50: 3.83508989
C51: =C50+Calcs!B$12 -> 1.500462163 | D51: 4.496538601 | E51: 0.3159995963 | F51: 4.485421234 | K51: =K50+Calcs!B$12 -> 1.500462163 | L51: 3.745966661 | M51: 0.2632522609 | N51: 3.736705029
C52: =C51+Calcs!B$12 -> 1.531721791 | D52: 4.498931362 | E52: 0.1757489224 | F52: 4.495497272 | K52: =K51+Calcs!B$12 -> 1.531721791 | L52: 3.636726075 | M52: 0.1420672238 | N52: 3.633950117
C53: =C52+Calcs!B$12 -> 1.56298142 | D53: 4.499957249 | E53: 0.0351663899 | F53: 4.499819838 | K53: =K52+Calcs!B$12 -> 1.56298142 | L53: 3.527351896 | M53: 0.02756564679 | N53: 3.527244184
C54: =C53+Calcs!B$12 -> 1.594241048 | D54: 4.499615259 | E54: -0.1054825619 | F54: 4.498378698 | K54: =K53+Calcs!B$12 -> 1.594241048 | L54: 3.417950992 | M54: -0.08012556771 | N54: 3.417011689
C55: =C54+Calcs!B$12 -> 1.625500676 | D55: 4.497905726 | E55: -0.2459323034 | F55: 4.491177265 | K55: =K54+Calcs!B$12 -> 1.625500676 | L55: 3.308630257 | M55: -0.1809062061 | N55: 3.303680845
C56: =C55+Calcs!B$12 -> 1.656760305 | D56: 4.494830321 | E56: -0.3859177755 | F56: 4.478232585 | K56: =K55+Calcs!B$12 -> 1.656760305 | L56: 3.199496506 | M56: -0.2747028222 | N56: 3.187681956
C57: =C56+Calcs!B$12 -> 1.688019933 | D57: 4.490392048 | E57: -0.5251752478 | F57: 4.459575283 | K57: =K56+Calcs!B$12 -> 1.688019933 | L57: 3.090656373 | M57: -0.3614687112 | N57: 3.069445746
C58: =C57+Calcs!B$12 -> 1.719279562 | D58: 4.484595244 | E58: -0.6634430722 | F58: 4.435249462 | K58: =K57+Calcs!B$12 -> 1.719279562 | L58: 2.982216203 | M58: -0.4411837796 | N58: 2.949401694
C59: =C58+Calcs!B$12 -> 1.75053919 | D59: 4.477445573 | E59: -0.8004624298 | F59: 4.405312561 | K59: =K58+Calcs!B$12 -> 1.75053919 | L59: 2.874281952 | M59: -0.5138543121 | N59: 2.827976394
C60: =C59+Calcs!B$12 -> 1.781798818 | D60: 4.468950022 | E60: -0.9359780668 | F60: 4.369835163 | K60: =K59+Calcs!B$12 -> 1.781798818 | L60: 2.76695908 | M60: -0.5795126368 | N60: 2.705591923
C61: =C60+Calcs!B$12 -> 1.813058447 | D61: 4.459116889 | E61: -1.069739018 | F61: 4.328900769 | K61: =K60+Calcs!B$12 -> 1.813058447 | L61: 2.660352452 | M61: -0.6382166896 | N61: 2.582664249
C62: =C61+Calcs!B$12 -> 1.844318075 | D62: 4.447955785 | E62: -1.201499316 | F62: 4.282605522 | K62: =K61+Calcs!B$12 -> 1.844318075 | L62: 2.55456623 | M62: -0.6900494804 | N62: 2.459601663
C63: =C62+Calcs!B$12 -> 1.875577704 | D63: 4.435477613 | E63: -1.331018681 | F63: 4.231057897 | K63: =K62+Calcs!B$12 -> 1.875577704 | L63: 2.449703777 | M63: -0.7351184639 | N63: 2.336803253
C64: =C63+Calcs!B$12 -> 1.906837332 | D64: 4.421694567 | E64: -1.458063191 | F64: 4.174378345 | K64: =K63+Calcs!B$12 -> 1.906837332 | L64: 2.345867553 | M64: -0.7735548168 | N64: 2.214657428
C65: =C64+Calcs!B$12 -> 1.93809696 | D65: 4.406620112 | E65: -1.582405933 | F65: 4.112698904 | K65: =K64+Calcs!B$12 -> 1.93809696 | L65: 2.243159014 | M65: -0.8055126247 | N65: 2.093540488
C66: =C65+Calcs!B$12 -> 1.969356589 | D66: 4.390268979 | E66: -1.703827622 | F66: 4.046162768 | K66: =K65+Calcs!B$12 -> 1.969356589 | L66: 2.141678516 | M66: -0.831167983 | N66: 1.973815252
C67: =C66+Calcs!B$12 -> 2.000616217 | D67: =a*SIN(Q) + b -> 4.372657144 | E67: -1.8221172 | F67: 3.974923824 | K67: =K66+Calcs!B$12 -> 2.000616217 | L67: =aa*COS(QQ) + bb -> 2.041525212 | M67: -0.8507180145 | N67: 1.855829748
C68: =C67+Calcs!B$12 -> 2.031875846 | D68: 4.353801815 | E68: =D68*COS(C68) -> -1.937072403 | F68: =D68*SIN(C68) -> 3.899146157 | K68: =K67+Calcs!B$12 -> 2.031875846 | L68: 1.942796962 | M68: =L68*COS(K68) -> -0.8643798089 | N68: =L68*SIN(K68) -> 1.73991597
C69: =C68+Calcs!B$12 -> 2.063135474 | D69: 4.333721415 | E69: -2.048500298 | F69: 3.819003514 | K69: =K68+Calcs!B$12 -> 2.063135474 | L69: 1.845590232 | M69: -0.8723892879 | N69: 1.626388709
C70: =C69+Calcs!B$12 -> 2.094395102 | D70: 4.312435565 | E70: -2.156217783 | F70: 3.734678752 | K70: =K69+Calcs!B$12 -> 2.094395102 | L70: 1.75 | M70: -0.875 | N70: 1.515544457
C71: =C70+Calcs!B$12 -> 2.125654731 | D71: 4.289965063 | E71: -2.26005206 | F71: 3.646363246 | K71: =K70+Calcs!B$12 -> 2.125654731 | L71: 1.656119667 | M71: -0.8724818523 | N71: 1.407660388
C72: =C71+Calcs!B$12 -> 2.156914359 | D72: 4.266331863 | E72: -2.359841067 | F72: 3.55425628 | K72: =K71+Calcs!B$12 -> 2.156914359 | L72: 1.564040961 | M72: -0.8651197816 | N72: 1.302993434
C73: =C72+Calcs!B$12 -> 2.188173988 | D73: 4.241559059 | E73: -2.455433873 | F73: 3.458564406 | K73: =K72+Calcs!B$12 -> 2.188173988 | L73: 1.473853851 | M73: -0.8532123726 | N73: 1.201779439
C74: =C73+Calcs!B$12 -> 2.219433616 | D74: 4.215670854 | E74: -2.54669103 | F74: 3.359500789 | K74: =K73+Calcs!B$12 -> 2.219433616 | L74: 1.385646457 | M74: -0.8370704274 | N74: 1.104232405
C75: =C74+Calcs!B$12 -> 2.250693244 | D75: 4.188692545 | E75: -2.633484897 | F75: 3.257284534 | K75: =K74+Calcs!B$12 -> 2.250693244 | L75: 1.299504967 | M75: -0.8170154929 | N75: 1.010543835
C76: =C75+Calcs!B$12 -> 2.281952873 | D76: 4.160650491 | E76: -2.715699909 | F76: 3.152139988 | K76: =K75+Calcs!B$12 -> 2.281952873 | L76: 1.215513547 | M76: -0.7933783518 | N76: 0.9208821711
C77: =C76+Calcs!B$12 -> 2.313212501 | D77: 4.131572091 | E77: -2.793232813 | F77: 3.044296042 | K77: =K76+Calcs!B$12 -> 2.313212501 | L77: 1.133754263 | M77: -0.7664974834 | N77: 0.8353923255
C78: =C77+Calcs!B$12 -> 2.34447213 | D78: 4.101485757 | E78: -2.865992856 | F78: 2.933985407 | K78: =K77+Calcs!B$12 -> 2.34447213 | L78: 1.054307003 | M78: -0.736717501 | N78: 0.7541953194
C79: =C78+Calcs!B$12 -> 2.375731758 | D79: 4.070420888 | E79: -2.933901934 | F79: 2.821443893 | K79: =K78+Calcs!B$12 -> 2.375731758 | L79: 0.9772493917 | M79: -0.7043875707 | N79: 0.6773880157
C80: =C79+Calcs!B$12 -> 2.406991386 | D80: 4.038407834 | E80: -2.996894698 | F80: 2.706909678 | K80: =K79+Calcs!B$12 -> 2.406991386 | L80: 0.9026567218 | M80: -0.6698598197 | N80: 0.6050429567
C81: =C80+Calcs!B$12 -> 2.438251015 | D81: 4.005477877 | E81: -3.054918608 | F81: 2.590622574 | K81: =K80+Calcs!B$12 -> 2.438251015 | L81: 0.8306018766 | M81: -0.6334877402 | N81: 0.5372083027
C82: =C81+Calcs!B$12 -> 2.469510643 | D82: 3.971663191 | E82: -3.107933954 | F82: 2.472823293 | K82: =K81+Calcs!B$12 -> 2.469510643 | L82: 0.7611552597 | M82: -0.5956245942 | N82: 0.4739078731
C83: =C82+Calcs!B$12 -> 2.500770272 | D83: 3.936996816 | E83: -3.155913828 | F83: 2.353752714 | K83: =K82+Calcs!B$12 -> 2.500770272 | L83: 0.6943847264 | M83: -0.5566218269 | N83: 0.4151412893
C84: =C83+Calcs!B$12 -> 2.5320299 | D84: 3.901512624 | E84: -3.198844051 | F84: 2.233651158 | K84: =K83+Calcs!B$12 -> 2.5320299 | L84: 0.6303555171 | M84: -0.5168274949 | N84: 0.3608842177
C85: =C84+Calcs!B$12 -> 2.563289528 | D85: 3.865245287 | E85: -3.236723058 | F85: 2.112757669 | K85: =K84+Calcs!B$12 -> 2.563289528 | L85: 0.5691301939 | M85: -0.4765847146 | N85: 0.3110887131
C86: =C85+Calcs!B$12 -> 2.594549157 | D86: 3.82823024 | E86: -3.269561748 | F86: 1.991309303 | K86: =K85+Calcs!B$12 -> 2.594549157 | L86: 0.5107685789 | M86: -0.4362301386 | N86: 0.2656836604
C87: =C86+Calcs!B$12 -> 2.625808785 | D87: 3.79050365 | E87: -3.29738328 | F87: 1.869540432 | K87: =K86+Calcs!B$12 -> 2.625808785 | L87: 0.4553276966 | M87: -0.3960924648 | N87: 0.2245753117
C88: =C87+Calcs!B$12 -> 2.657068413 | D88: 3.752102379 | E88: -3.320222834 | F88: 1.747682064 | K88: =K87+Calcs!B$12 -> 2.657068413 | L88: 0.4028617172 | M88: -0.3564909849 | N88: 0.1876479174
C89: =C88+Calcs!B$12 -> 2.688328042 | D89: 3.71306395 | E89: -3.33812734 | F89: 1.625961179 | K89: =K88+Calcs!B$12 -> 2.688328042 | L89: 0.3534219046 | M89: -0.3177341782 | N89: 0.1547644491
C90: =C89+Calcs!B$12 -> 2.71958767 | D90: 3.673426504 | E90: -3.351155154 | F90: 1.504600086 | K90: =K89+Calcs!B$12 -> 2.71958767 | L90: 0.3070565657 | M90: -0.2801183558 | N90: 0.1257674094
C91: =C90+Calcs!B$12 -> 2.750847299 | D91: 3.633228773 | E91: -3.359375708 | F91: 1.3838158 | K91: =K90+Calcs!B$12 -> 2.750847299 | L91: 0.2638110032 | M91: -0.2439263617 | N91: 0.1004797268
C92: =C91+Calcs!B$12 -> 2.782106927 | D92: 3.592510032 | E92: -3.362869121 | F92: 1.26381945 | K92: =K91+Calcs!B$12 -> 2.782106927 | L92: 0.2237274718 | M92: -0.2094263342 | N92: 0.0787057316
C93: =C92+Calcs!B$12 -> 2.813366555 | D93: 3.551310066 | E93: -3.361725777 | F93: 1.144815701 | K93: =K92+Calcs!B$12 -> 2.813366555 | L93: 0.1868451365 | M93: -0.176870535 | N93: 0.06023220783
C94: =C93+Calcs!B$12 -> 2.844626184 | D94: 3.509669133 | E94: -3.356045867 | F94: 1.027002222 | K94: =K93+Calcs!B$12 -> 2.844626184 | L94: 0.1532000344 | M94: -0.1464942486 | N94: 0.04482951805
C95: =C94+Calcs!B$12 -> 2.875885812 | D95: 3.467627918 | E95: -3.345938907 | F95: 0.9105691654 | K95: =K94+Calcs!B$12 -> 2.875885812 | L95: 0.1228250397 | M95: -0.1185147568 | N95: 0.03225279545
C96: =C95+Calcs!B$12 -> 2.907145441 | D96: 3.425227499 | E96: -3.331523226 | F96: 0.7956986958 | K96: =K95+Calcs!B$12 -> 2.907145441 | L96: 0.09574983136 | M96: -0.09313039416 | N96: 0.02224319872
C97: =C96+Calcs!B$12 -> 2.938405069 | D97: 3.382509306 | E97: -3.312925422 | F97: 0.6825645399 | K97: =K96+Calcs!B$12 -> 2.938405069 | L97: 0.07200086408 | M97: -0.07051968568 | N97: 0.01452922438
C98: =C97+Calcs!B$12 -> 2.969664697 | D98: 3.339515077 | E98: -3.290279802 | F98: 0.5713315786 | K98: =K97+Calcs!B$12 -> 2.969664697 | L98: 0.05160134265 | M98: -0.05084057163 | N98: 0.008828071105
C99: =C98+Calcs!B$12 -> 3.000924326 | D99: 3.296286821 | E99: -3.263727796 | F99: 0.4621554728 | K99: =K98+Calcs!B$12 -> 3.000924326 | L99: 0.03457119913 | M99: -0.03422972261 | N99: 0.004847050558
C100: =C99+Calcs!B$12 -> 3.032183954 | D100: 3.252866777 | E100: -3.233417353 | F100: 0.3551823281 | K100: =K99+Calcs!B$12 -> 3.032183954 | L100: 0.02092707341 | M100: -0.02080194701 | N100: 0.002285038756
C101: =C100+Calcs!B$12 -> 3.063443583 | D101: 3.209297369 | E101: -3.199502321 | F101: 0.2505483979 | K101: =K100+Calcs!B$12 -> 3.063443583 | L101: 0.01068229696 | M101: -0.01064969368 | N101: 0.0008339621053
C102: =C101+Calcs!B$12 -> 3.094703211 | D102: 3.165621167 | E102: -3.162141806 | F102: 0.1483798262 | K102: =K101+Calcs!B$12 -> 3.094703211 | L102: 0.0038468798 | M102: -0.003842651662 | N102: 0.0001803119597
C103: =C102+Calcs!B$12 -> 3.125962839 | D103: 3.121880849 | E103: -3.121499533 | F103: 0.04879243097 | K103: =K102+Calcs!B$12 -> 3.125962839 | L103: 0.0004275007077 | M103: -0.0004274484915 | N103: 6.681484585e-06
C104: =C103+Calcs!B$12 -> 3.157222468 | D104: 3.078119151 | E104: -3.07774318 | F104: -0.04810847161 | K104: =K103+Calcs!B$12 -> 3.157222468 | L104: 0.0004275007077 | M104: -0.0004274484915 | N104: -6.681484585e-06
C105: =C104+Calcs!B$12 -> 3.188482096 | D105: 3.034378833 | E105: =D105*COS(C105) -> -3.031043721 | F105: =D105*SIN(C105) -> -0.1422282011 | K105: =K104+Calcs!B$12 -> 3.188482096 | L105: 0.0038468798 | M105: -0.003842651662 | N105: -0.0001803119597
C106: =C105+Calcs!B$12 -> 3.219741725 | D106: 2.990702631 | E106: -2.981574753 | F106: -0.2334828054 | K106: =K105+Calcs!B$12 -> 3.219741725 | L106: 0.01068229696 | M106: -0.01064969368 | N106: -0.0008339621053
C107: =C106+Calcs!B$12 -> 3.251001353 | D107: 2.947133223 | E107: -2.929511831 | F107: -0.3217991118 | K107: =K106+Calcs!B$12 -> 3.251001353 | L107: 0.02092707341 | M107: -0.02080194701 | N107: -0.002285038756
C108: =C107+Calcs!B$12 -> 3.282260981 | D108: 2.903713179 | E108: -2.875031794 | F108: -0.4071147354 | K108: =K107+Calcs!B$12 -> 3.282260981 | L108: 0.03457119913 | M108: -0.03422972261 | N108: -0.004847050558
C109: =C108+Calcs!B$12 -> 3.31352061 | D109: 2.860484923 | E109: -2.818312105 | F109: -0.4893780471 | K109: =K108+Calcs!B$12 -> 3.31352061 | L109: 0.05160134265 | M109: -0.05084057163 | N109: -0.008828071105
C110: =C109+Calcs!B$12 -> 3.344780238 | D110: 2.817490694 | E110: -2.75953019 | F110: -0.5685481001 | K110: =K109+Calcs!B$12 -> 3.344780238 | L110: 0.07200086408 | M110: -0.07051968568 | N110: -0.01452922438
C111: =C110+Calcs!B$12 -> 3.376039867 | D111: 2.774772501 | E111: -2.698862787 | F111: -0.6445945154 | K111: =K110+Calcs!B$12 -> 3.376039867 | L111: 0.09574983136 | M111: -0.09313039416 | N111: -0.02224319872
C112: =C111+Calcs!B$12 -> 3.407299495 | D112: 2.732372082 | E112: -2.636485308 | F112: -0.7174973282 | K112: =K111+Calcs!B$12 -> 3.407299495 | L112: 0.1228250397 | M112: -0.1185147568 | N112: -0.03225279545
C113: =C112+Calcs!B$12 -> 3.438559123 | D113: 2.690330867 | E113: -2.572571215 | F113: -0.7872467954 | K113: =K112+Calcs!B$12 -> 3.438559123 | L113: 0.1532000344 | M113: -0.1464942486 | N113: -0.04482951805
C114: =C113+Calcs!B$12 -> 3.469818752 | D114: 2.648689934 | E114: -2.50729141 | F114: -0.8538431642 | K114: =K113+Calcs!B$12 -> 3.469818752 | L114: 0.1868451365 | M114: -0.176870535 | N114: -0.06023220783
C115: =C114+Calcs!B$12 -> 3.50107838 | D115: 2.607489968 | E115: -2.440813643 | F115: -0.917296405 | K115: =K114+Calcs!B$12 -> 3.50107838 | L115: 0.2237274718 | M115: -0.2094263342 | N115: -0.0787057316
C116: =C115+Calcs!B$12 -> 3.532338009 | D116: 2.566771227 | E116: -2.373301943 | F116: -0.9776259085 | K116: =K115+Calcs!B$12 -> 3.532338009 | L116: 0.2638110032 | M116: -0.2439263617 | N116: -0.1004797268
C117: =C116+Calcs!B$12 -> 3.563597637 | D117: 2.526573496 | E117: -2.304916073 | F117: -1.034860148 | K117: =K116+Calcs!B$12 -> 3.563597637 | L117: 0.3070565657 | M117: -0.2801183558 | N117: -0.1257674094
C118: =C117+Calcs!B$12 -> 3.594857265 | D118: 2.48693605 | E118: -2.235811 | F118: -1.089036313 | K118: =K117+Calcs!B$12 -> 3.594857265 | L118: 0.3534219046 | M118: -0.3177341782 | N118: -0.1547644491
C119: =C118+Calcs!B$12 -> 3.626116894 | D119: 2.447897621 | E119: -2.166136409 | F119: -1.140199902 | K119: =K118+Calcs!B$12 -> 3.626116894 | L119: 0.4028617172 | M119: -0.3564909849 | N119: -0.1876479174
C120: =C119+Calcs!B$12 -> 3.657376522 | D120: 2.40949635 | E120: -2.096036229 | F120: -1.188404303 | K120: =K119+Calcs!B$12 -> 3.657376522 | L120: 0.4553276966 | M120: -0.3960924648 | N120: -0.2245753117
C121: =C120+Calcs!B$12 -> 3.68863615 | D121: 2.37176976 | E121: -2.025648198 | F121: -1.233710329 | K121: =K120+Calcs!B$12 -> 3.68863615 | L121: 0.5107685789 | M121: -0.4362301386 | N121: -0.2656836604
C122: =C121+Calcs!B$12 -> 3.719895779 | D122: 2.334754713 | E122: -1.955103455 | F122: -1.276185743 | K122: =K121+Calcs!B$12 -> 3.719895779 | L122: 0.5691301939 | M122: -0.4765847146 | N122: -0.3110887131
C123: =C122+Calcs!B$12 -> 3.751155407 | D123: 2.298487376 | E123: -1.884526176 | F123: -1.315904749 | K123: =K122+Calcs!B$12 -> 3.751155407 | L123: 0.6303555171 | M123: -0.5168274949 | N123: -0.3608842177
C124: =C123+Calcs!B$12 -> 3.782415036 | D124: 2.263003184 | E124: -1.814033228 | F124: -1.352947471 | K124: =K123+Calcs!B$12 -> 3.782415036 | L124: 0.6943847264 | M124: -0.5566218269 | N124: -0.4151412893
C125: =C124+Calcs!B$12 -> 3.813674664 | D125: 2.228336809 | E125: -1.743733871 | F125: -1.387399409 | K125: =K124+Calcs!B$12 -> 3.813674664 | L125: 0.7611552597 | M125: -0.5956245942 | N125: -0.4739078731
C126: =C125+Calcs!B$12 -> 3.844934292 | D126: 2.194522123 | E126: -1.673729496 | F126: -1.419350881 | K126: =K125+Calcs!B$12 -> 3.844934292 | L126: 0.8306018766 | M126: -0.6334877402 | N126: -0.5372083027
C127: =C126+Calcs!B$12 -> 3.876193921 | D127: 2.161592166 | E127: -1.604113395 | F127: -1.448896445 | K127: =K126+Calcs!B$12 -> 3.876193921 | L127: 0.9026567218 | M127: -0.6698598197 | N127: -0.6050429567
C128: =C127+Calcs!B$12 -> 3.907453549 | D128: 2.129579112 | E128: -1.534970572 | F128: -1.476134323 | K128: =K127+Calcs!B$12 -> 3.907453549 | L128: 0.9772493917 | M128: -0.7043875707 | N128: -0.6773880157
C129: =C128+Calcs!B$12 -> 3.938713178 | D129: 2.098514243 | E129: -1.466377597 | F129: -1.501165804 | K129: =K128+Calcs!B$12 -> 3.938713178 | L129: 1.054307003 | M129: -0.736717501 | N129: -0.7541953194
C130: =C129+Calcs!B$12 -> 3.969972806 | D130: 2.068427909 | E130: -1.398402492 | F130: -1.524094645 | K130: =K129+Calcs!B$12 -> 3.969972806 | L130: 1.133754263 | M130: -0.7664974834 | N130: -0.8353923255
C131: =C130+Calcs!B$12 -> 4.001232434 | D131: =a*SIN(Q) + b -> 2.039349509 | E131: -1.331104665 | F131: -1.54502647 | K131: =K130+Calcs!B$12 -> 4.001232434 | L131: =aa*COS(QQ) + bb -> 1.215513547 | M131: -0.7933783518 | N131: -0.9208821711
C132: =C131+Calcs!B$12 -> 4.032492063 | D132: 2.011307455 | E132: -1.264534876 | F132: -1.564068166 | K132: =K131+Calcs!B$12 -> 4.032492063 | L132: 1.299504967 | M132: =L132*COS(K132) -> -0.8170154929 | N132: =L132*SIN(K132) -> -1.010543835
C133: =C132+Calcs!B$12 -> 4.063751691 | D133: 1.984329146 | E133: -1.198735245 | F133: -1.581327281 | K133: =K132+Calcs!B$12 -> 4.063751691 | L133: 1.385646457 | M133: -0.8370704274 | N133: -1.104232405
C134: =C133+Calcs!B$12 -> 4.09501132 | D134: 1.958440941 | E134: -1.133739306 | F134: -1.596911427 | K134: =K133+Calcs!B$12 -> 4.09501132 | L134: 1.473853851 | M134: -0.8532123726 | N134: -1.201779439
C135: =C134+Calcs!B$12 -> 4.126270948 | D135: 1.933668137 | E135: -1.069572088 | F135: -1.610927686 | K135: =K134+Calcs!B$12 -> 4.126270948 | L135: 1.564040961 | M135: -0.8651197816 | N135: -1.302993434
C136: =C135+Calcs!B$12 -> 4.157530576 | D136: 1.910034937 | E136: -1.006250245 | F136: -1.623482031 | K136: =K135+Calcs!B$12 -> 4.157530576 | L136: 1.656119667 | M136: -0.8724818523 | N136: -1.407660388
C137: =C136+Calcs!B$12 -> 4.188790205 | D137: 1.887564435 | E137: -0.9437822174 | F137: -1.634678752 | K137: =K136+Calcs!B$12 -> 4.188790205 | L137: 1.75 | M137: -0.875 | N137: -1.515544457
C138: =C137+Calcs!B$12 -> 4.220049833 | D138: 1.866278585 | E138: -0.8821684344 | F138: -1.644619898 | K138: =K137+Calcs!B$12 -> 4.220049833 | L138: 1.845590232 | M138: -0.8723892879 | N138: -1.626388709
C139: =C138+Calcs!B$12 -> 4.251309462 | D139: 1.846198185 | E139: -0.821401549 | F139: -1.65340474 | K139: =K138+Calcs!B$12 -> 4.251309462 | L139: 1.942796962 | M139: -0.8643798089 | N139: -1.73991597
C140: =C139+Calcs!B$12 -> 4.28256909 | D140: 1.827342856 | E140: -0.7614667096 | F140: -1.661129243 | K140: =K139+Calcs!B$12 -> 4.28256909 | L140: 2.041525212 | M140: -0.8507180145 | N140: -1.855829748
C141: =C140+Calcs!B$12 -> 4.313828718 | D141: 1.809731021 | E141: -0.7023418646 | F141: -1.667885569 | K141: =K140+Calcs!B$12 -> 4.313828718 | L141: 2.141678516 | M141: -0.831167983 | N141: -1.973815252
C142: =C141+Calcs!B$12 -> 4.345088347 | D142: 1.793379888 | E142: -0.6439980988 | F142: -1.673761593 | K142: =K141+Calcs!B$12 -> 4.345088347 | L142: 2.243159014 | M142: -0.8055126247 | N142: -2.093540488
C143: =C142+Calcs!B$12 -> 4.376347975 | D143: 1.778305433 | E143: -0.5864000003 | F143: -1.678840449 | K143: =K142+Calcs!B$12 -> 4.376347975 | L143: 2.345867553 | M143: -0.7735548168 | N143: -2.214657428
C144: =C143+Calcs!B$12 -> 4.407607604 | D144: 1.764522387 | E144: -0.5295060564 | F144: -1.683200104 | K144: =K143+Calcs!B$12 -> 4.407607604 | L144: 2.449703777 | M144: -0.7351184639 | N144: -2.336803253
C145: =C144+Calcs!B$12 -> 4.438867232 | D145: 1.752044215 | E145: -0.4732690764 | F145: -1.686912954 | K145: =K144+Calcs!B$12 -> 4.438867232 | L145: 2.55456623 | M145: -0.6900494804 | N145: -2.459601663
C146: =C145+Calcs!B$12 -> 4.47012686 | D146: 1.740883111 | E146: -0.4176366387 | F146: -1.690045456 | K146: =K145+Calcs!B$12 -> 4.47012686 | L146: 2.660352452 | M146: -0.6382166896 | N146: -2.582664249
C147: =C146+Calcs!B$12 -> 4.501386489 | D147: 1.731049978 | E147: -0.3625515623 | F147: -1.69265779 | K147: =K146+Calcs!B$12 -> 4.501386489 | L147: 2.76695908 | M147: -0.5795126368 | N147: -2.705591923
C148: =C147+Calcs!B$12 -> 4.532646117 | D148: 1.722554427 | E148: -0.3079523981 | F148: -1.69480355 | K148: =K147+Calcs!B$12 -> 4.532646117 | L148: 2.874281952 | M148: -0.5138543121 | N148: -2.827976394
C149: =C148+Calcs!B$12 -> 4.563905746 | D149: 1.715404756 | E149: -0.2537739393 | F149: -1.696529476 | K149: =K148+Calcs!B$12 -> 4.563905746 | L149: 2.982216203 | M149: -0.4411837796 | N149: -2.949401694
C150: =C149+Calcs!B$12 -> 4.595165374 | D150: 1.709607952 | E150: -0.1999477485 | F150: -1.697875215 | K150: =K149+Calcs!B$12 -> 4.595165374 | L150: 3.090656373 | M150: -0.3614687112 | N150: -3.069445746
C151: =C150+Calcs!B$12 -> 4.626425002 | D151: 1.705169679 | E151: -0.1464026988 | F151: -1.698873122 | K151: =K150+Calcs!B$12 -> 4.626425002 | L151: 3.199496506 | M151: -0.2747028222 | N151: -3.187681956
C152: =C151+Calcs!B$12 -> 4.657684631 | D152: 1.702094274 | E152: -0.09306552669 | F152: -1.699548094 | K152: =K151+Calcs!B$12 -> 4.657684631 | L152: 3.308630257 | M152: -0.1809062061 | N152: -3.303680845
C153: =C152+Calcs!B$12 -> 4.688944259 | D153: 1.700384741 | E153: -0.03986139444 | F153: -1.69991745 | K153: =K152+Calcs!B$12 -> 4.688944259 | L153: 3.417950992 | M153: -0.08012556771 | N153: -3.417011689
C154: =C153+Calcs!B$12 -> 4.720203887 | D154: 1.700042751 | E154: 0.01328554093 | F154: -1.699990838 | K154: =K153+Calcs!B$12 -> 4.720203887 | L154: 3.527351896 | M154: 0.02756564679 | N154: -3.527244184
C155: =C154+Calcs!B$12 -> 4.751463516 | D155: 1.701068638 | E155: 0.06645155392 | F155: -1.699770191 | K155: =K154+Calcs!B$12 -> 4.751463516 | L155: 3.636726075 | M155: 0.1420672238 | N155: -3.633950117
C156: =C155+Calcs!B$12 -> 4.782723144 | D156: 1.703461399 | E156: 0.1197127751 | F156: -1.699249714 | K156: =K155+Calcs!B$12 -> 4.782723144 | L156: 3.745966661 | M156: 0.2632522609 | N156: -3.736705029
C157: =C156+Calcs!B$12 -> 4.813982773 | D157: 1.707218697 | E157: 0.1731446164 | F157: -1.698415915 | K157: =K156+Calcs!B$12 -> 4.813982773 | L157: 3.854966917 | M157: 0.390967349 | N157: -3.83508989
C158: =C157+Calcs!B$12 -> 4.845242401 | D158: 1.71233686 | E158: 0.2268211992 | F158: -1.697247674 | K158: =K157+Calcs!B$12 -> 4.845242401 | L158: 3.96362034 | M158: 0.5250328597 | N158: -3.928692746
C159: =C158+Calcs!B$12 -> 4.876502029 | D159: 1.718810888 | E159: 0.2808147884 | F159: -1.695716346 | K159: =K158+Calcs!B$12 -> 4.876502029 | L159: 4.071820766 | M159: 0.6652433346 | N159: -4.017110362
C160: =C159+Calcs!B$12 -> 4.907761658 | D160: 1.726634455 | E160: 0.3351952347 | F160: -1.693785907 | K160: =K159+Calcs!B$12 -> 4.907761658 | L160: 4.179462475 | M160: 0.8113679771 | N160: -4.099949828
C161: =C160+Calcs!B$12 -> 4.939021286 | D161: 1.735799917 | E161: 0.3900294268 | F161: -1.691413136 | K161: =K160+Calcs!B$12 -> 4.939021286 | L161: 4.286440292 | M161: 0.9631512445 | N161: -4.176830145
C162: =C161+Calcs!B$12 -> 4.970280915 | D162: 1.746298318 | E162: 0.4453807577 | F162: -1.688547836 | K162: =K161+Calcs!B$12 -> 4.970280915 | L162: 4.39264969 | M162: 1.120313538 | N162: -4.247383768
C163: =C162+Calcs!B$12 -> 5.001540543 | D163: 1.7581194 | E163: 0.5013086051 | F163: -1.685133083 | K163: =K162+Calcs!B$12 -> 5.001540543 | L163: 4.497986893 | M163: 1.28255199 | N163: -4.311258109
C164: =C163+Calcs!B$12 -> 5.032800171 | D164: 1.771251613 | E164: 0.5578678305 | F164: -1.681105517 | K164: =K163+Calcs!B$12 -> 5.032800171 | L164: 4.602348979 | M164: 1.449541342 | N164: -4.368116988
C165: =C164+Calcs!B$12 -> 5.0640598 | D165: 1.785682126 | E165: 0.6151082975 | F165: -1.676395668 | K165: =K164+Calcs!B$12 -> 5.0640598 | L165: 4.705633976 | M165: 1.620934914 | N165: -4.417642032
C166: =C165+Calcs!B$12 -> 5.095319428 | D166: 1.801396839 | E166: 0.6730744123 | F166: -1.670928307 | K166: =K165+Calcs!B$12 -> 5.095319428 | L166: 4.807740966 | M166: 1.796365662 | N166: -4.459534012
C167: =C166+Calcs!B$12 -> 5.126579057 | D167: 1.818380397 | E167: 0.7318046883 | F167: -1.66462283 | K167: =K166+Calcs!B$12 -> 5.126579057 | L167: 4.908570183 | M167: 1.975447315 | N167: -4.49351412
C168: =C167+Calcs!B$12 -> 5.157838685 | D168: 1.836616207 | E168: 0.7913313368 | F168: -1.657393679 | K168: =K167+Calcs!B$12 -> 5.157838685 | L168: 5.008023107 | M168: 2.157775591 | N168: -4.519325165
C169: =C168+Calcs!B$12 -> 5.189098313 | D169: 1.856086449 | E169: =D169*COS(C169) -> 0.8516798852 | F169: =D169*SIN(C169) -> -1.649150775 | K169: =K168+Calcs!B$12 -> 5.189098313 | L169: 5.106002565 | M169: 2.34292949 | N169: -4.536732701
C170: =C169+Calcs!B$12 -> 5.220357942 | D170: 1.876772101 | E170: 0.9128688252 | F170: -1.639799996 | K170: =K169+Calcs!B$12 -> 5.220357942 | L170: 5.202412822 | M170: 2.530472655 | N170: -4.545526076
C171: =C170+Calcs!B$12 -> 5.25161757 | D171: 1.89865295 | E171: 0.9749092922 | F171: -1.629243658 | K171: =K170+Calcs!B$12 -> 5.25161757 | L171: 5.297159677 | M171: 2.719954793 | N171: -4.545519395
C172: =C171+Calcs!B$12 -> 5.282877199 | D172: 1.921707617 | E172: 1.037804777 | F172: -1.617381034 | K172: =K171+Calcs!B$12 -> 5.282877199 | L172: 5.390150555 | M172: 2.910913161 | N172: -4.536552389
C173: =C172+Calcs!B$12 -> 5.314136827 | D173: 1.945913575 | E173: 1.101550872 | F173: -1.604108886 | K173: =K172+Calcs!B$12 -> 5.314136827 | L173: 5.481294596 | M173: 3.102874103 | N173: -4.518491202
C174: =C173+Calcs!B$12 -> 5.345396455 | D174: 1.971247174 | E174: 1.166135052 | F174: -1.589322013 | K174: =K173+Calcs!B$12 -> 5.345396455 | L174: 5.570502743 | M174: 3.295354632 | N174: -4.491229082
C175: =C174+Calcs!B$12 -> 5.376656084 | D175: 1.99768366 | E175: 1.231536494 | F175: -1.572913815 | K175: =K174+Calcs!B$12 -> 5.376656084 | L175: 5.657687834 | M175: 3.48786406 | N175: -4.454686962
C176: =C175+Calcs!B$12 -> 5.407915712 | D176: 2.025197203 | E176: 1.297725931 | F176: -1.554776871 | K176: =K175+Calcs!B$12 -> 5.407915712 | L176: 5.742764681 | M176: 3.679905657 | N176: -4.408813961
C177: =C176+Calcs!B$12 -> 5.439175341 | D177: 2.053760919 | E177: 1.364665544 | F177: -1.534803526 | K177: =K176+Calcs!B$12 -> 5.439175341 | L177: 5.825650157 | M177: 3.870978344 | N177: -4.353587764
C178: =C177+Calcs!B$12 -> 5.470434969 | D178: 2.083346899 | E178: 1.432308895 | F178: -1.51288649 | K178: =K177+Calcs!B$12 -> 5.470434969 | L178: 5.906263275 | M178: 4.060578404 | N178: -4.289014911
C179: =C178+Calcs!B$12 -> 5.501694597 | D179: 2.113926236 | E179: 1.5006009 | F179: -1.488919429 | K179: =K178+Calcs!B$12 -> 5.501694597 | L179: 5.98452527 | M179: 4.248201219 | N179: -4.215130973
C180: =C179+Calcs!B$12 -> 5.532954226 | D180: 2.14546905 | E180: 1.569477839 | F180: -1.462797579 | K180: =K179+Calcs!B$12 -> 5.532954226 | L180: 6.060359673 | M180: 4.433343004 | N180: -4.132000627
C181: =C180+Calcs!B$12 -> 5.564213854 | D181: 2.177944522 | E181: 1.638867402 | F181: -1.434418341 | K181: =K180+Calcs!B$12 -> 5.564213854 | L181: 6.133692388 | M181: 4.615502558 | N181: -4.03971762
C182: =C181+Calcs!B$12 -> 5.595473483 | D182: 2.21132092 | E182: 1.708688788 | F182: -1.403681886 | K182: =K181+Calcs!B$12 -> 5.595473483 | L182: 6.204451762 | M182: 4.794183 | N182: -3.93840463
C183: =C182+Calcs!B$12 -> 5.626733111 | D183: 2.245565633 | E183: 1.778852826 | F183: -1.37049175 | K183: =K182+Calcs!B$12 -> 5.626733111 | L183: 6.272568657 | M183: 4.968893502 | N183: -3.828213019
C184: =C183+Calcs!B$12 -> 5.657992739 | D184: 2.280645201 | E184: 1.84926215 | F184: -1.334755421 | K184: =K183+Calcs!B$12 -> 5.657992739 | L184: 6.337976517 | M184: 5.139151007 | N184: -3.70932248
C185: =C184+Calcs!B$12 -> 5.689252368 | D185: 2.316525349 | E185: 1.919811404 | F185: -1.296384921 | K185: =K184+Calcs!B$12 -> 5.689252368 | L185: 6.400611434 | M185: 5.304481917 | N185: -3.58194058
C186: =C185+Calcs!B$12 -> 5.720511996 | D186: 2.353171017 | E186: 1.990387487 | F186: -1.25529737 | K186: =K185+Calcs!B$12 -> 5.720511996 | L186: 6.460412207 | M186: 5.464423761 | N186: -3.446302199
C187: =C186+Calcs!B$12 -> 5.751771624 | D187: 2.390546401 | E187: 2.060869839 | F187: -1.211415535 | K187: =K186+Calcs!B$12 -> 5.751771624 | L187: 6.517320407 | M187: 5.618526818 | N187: -3.302668873
C188: =C187+Calcs!B$12 -> 5.783031253 | D188: 2.42861498 | E188: 2.131130759 | F188: -1.164668369 | K188: =K187+Calcs!B$12 -> 5.783031253 | L188: 6.571280429 | M188: 5.766355706 | N188: -3.151328028
C189: =C188+Calcs!B$12 -> 5.814290881 | D189: 2.46733956 | E189: 2.201035759 | F189: -1.114991522 | K189: =K188+Calcs!B$12 -> 5.814290881 | L189: 6.622239549 | M189: 5.907490921 | N189: -2.992592132
C190: =C189+Calcs!B$12 -> 5.84555051 | D190: 2.506682303 | E190: 2.270443952 | F190: -1.062327836 | K190: =K189+Calcs!B$12 -> 5.84555051 | L190: 6.670147976 | M190: 6.041530317 | N190: -2.826797739
C191: =C190+Calcs!B$12 -> 5.876810138 | D191: 2.546604768 | E191: 2.339208476 | F191: -1.006627812 | K191: =K190+Calcs!B$12 -> 5.876810138 | L191: 6.7149589 | M191: 6.168090538 | N191: -2.654304457
C192: =C191+Calcs!B$12 -> 5.908069766 | D192: 2.587067947 | E192: 2.407176943 | F192: -0.947850053 | K192: =K191+Calcs!B$12 -> 5.908069766 | L192: 6.756628537 | M192: 6.286808374 | N192: -2.475493821
C193: =C192+Calcs!B$12 -> 5.939329395 | D193: 2.628032303 | E193: 2.474191926 | F193: -0.8859616807 | K193: =K192+Calcs!B$12 -> 5.939329395 | L193: 6.795116171 | M193: 6.397342052 | N193: -2.290768091
C194: =C193+Calcs!B$12 -> 5.970589023 | D194: 2.669457813 | E194: 2.540091462 | F194: -0.8209387185 | K194: =K193+Calcs!B$12 -> 5.970589023 | L194: 6.830384198 | M194: 6.499372457 | N194: -2.100548967
C195: =C194+Calcs!B$12 -> 6.001848652 | D195: =a*SIN(Q) + b -> 2.711303998 | E195: 2.60470959 | F195: -0.7527664458 | K195: =K194+Calcs!B$12 -> 6.001848652 | L195: =aa*COS(QQ) + bb -> 6.862398157 | M195: 6.59260426 | N195: -1.905276234
C196: =C195+Calcs!B$12 -> 6.03310828 | D196: 2.753529972 | E196: 2.667876912 | F196: -0.6814397181 | K196: =K195+Calcs!B$12 -> 6.03310828 | L196: 6.891126767 | M196: =L196*COS(K196) -> 6.676766981 | N196: =L196*SIN(K196) -> -1.705406343
C197: =C196+Calcs!B$12 -> 6.064367908 | D197: 2.796094478 | E197: 2.729421173 | F197: -0.6069632522 | K197: =K196+Calcs!B$12 -> 6.064367908 | L197: 6.916541959 | M197: 6.751615947 | N197: -1.501410927
C198: =C197+Calcs!B$12 -> 6.095627537 | D198: 2.838955924 | E198: 2.789167856 | F198: -0.5293518757 | K198: =K197+Calcs!B$12 -> 6.095627537 | L198: 6.9386189 | M198: 6.816933169 | N198: -1.293775257
C199: =C198+Calcs!B$12 -> 6.126887165 | D199: 2.882072433 | E199: 2.846940809 | F199: -0.4486307386 | K199: =K198+Calcs!B$12 -> 6.126887165 | L199: 6.957336019 | M199: 6.872528118 | N199: -1.082996653
C200: =C199+Calcs!B$12 -> 6.158146794 | D200: 2.925401875 | E200: 2.902562867 | F200: -0.3648354872 | K200: =K199+Calcs!B$12 -> 6.158146794 | L200: 6.972675027 | M200: 6.91823841 | N200: -0.8695828467
C201: =C200+Calcs!B$12 -> 6.189406422 | D201: 2.968901915 | E201: 2.955856506 | F201: -0.2780123976 | K201: =K200+Calcs!B$12 -> 6.189406422 | L201: 6.984620937 | M201: 6.953930387 | N201: -0.6540503084
... 3 more rows

Sheet Defining Function
A1: Defining a Function in Excel
A3: Computers have very specific rules you must follow when defining a function. If you don't, the program will either not work at all or will work incorrectly.
A5: 1. The Variable used should be the one named in the instruction, usually x, though sometimes y, t, Q (for an angle theta),
A6: or even x and y (for a function of two variables).
A8: 2. Order of Operations: There five arithmetic operations, addition (+), subtraction (-), multiplication (*), division (/), and exponentiation or power (^). When computers see any of these operation symbols, they perform the indicated steps in a very particular order. First, the power is done. Second, products and quotients of adjacent terms is done. Third, and last, sums and differences of adjacent terms are done. So, in 10*x^3 + 5*x – 7, say with x = 2, the first pass only calculates 2^3 and ignores the multiplications and the sums and differences to calculate 2^3 = 8. The second pass looks at 10*8 + 5*2 – 7 and only does the multiplications, so it produces 80 + 10 - 7. The third pass looks at the +’s and –‘s to produce 80 + 10 – 7 = 83.
A10: 3. Parentheses If you need an operation involving more than two adjacent terms, as in Ö4^3 + 6^2, the computer would take the square root of 4 to produce 2^3 + 6^2; it would then cube the 2 and square the 6 to produce 8 + 36; and finally it would add the 8 and the 36 to get 44. If you actually wanted the square root of the entire expression, you would need to use parentheses, as in Ö(4^3 + 6^2) to tell the computer to do all the operations inside the parentheses before taking the square root. Therefore, it would calculate (4^3 + 6^2) = 64 + 36 = 100 and then take the square root of Ö100 = 10.
A12: 4. Built-In Functions Computer programs have built-in functions for most common algebraic functions. In Excel, the square root function is denoted by SQRT(…), so SQRT(100) = 10. Alternatively, you could enter it as 100^.5 or 100^(1/2); notice that parentheses are needed to have the ½ done first. The common trig functions are SIN (…), COS (…), and TAN (…), where the arguments are automatically interpreted as being in radians, not degrees. The logarithm to the base 10 is represented by LOG (…) and the logarithm with the base e, known as the natural logarithm, is LN (…). The corresponding exponential function with base e is EXP (x). If x is the variable, then each of these would be SQRT (x), SIN (x), COS (x), TAN (x), LOG (x) (for log with base 10 ), LN (x) (for log with base e ), and EXP (x).
